bitfinex-derivatives/quotes_SOLF0:USTF0_20240820
["timestamp","ask_amount","ask_price","bid_price","bid_amount"]
[1724131473908,0.05178634,148.53,148.5,0.04570976]
[1724131475414,0.05178634,148.53,148.5,3.41080976]
[1724131475608,0.05178634,148.53,148.5,0.04570976]
[1724131476014,0.05178634,148.53,148.52,3.3647]
[1724131477618,0.05178634,148.53,148.5,0.04570976]
[1724131478016,0.05178634,148.53,148.52,3.3647]
[1724131479619,32.3,148.63,148.52,32.3]
[1724131479817,35.0385,148.63,148.52,32.3]
[1724131480015,3.3629,148.61,148.52,32.3]
[1724131480322,35.0385,148.63,148.55,3.364]
[1724131480521,32.3,148.6,148.58,0.04375583]
[1724131480715,32.34489788,148.6,148.47,32.3]
[1724131480915,32.3,148.57,148.47,32.3]
[1724131481111,32.3,148.53,148.36,26.9]
[1724131481420,32.3,148.51,148.39,1.22725409]
[1724131481621,32.3,148.51,148.4,1.22725409]
[1724131481814,0.04389857,148.46,148.44,0.04945359]
[1724131482024,0.04661901,148.46,148.44,0.04945359]
[1724131482618,0.04661901,148.46,148.45,1.33948655]
[1724131483921,0.04661901,148.46,148.44,0.04945359]
[1724131484224,41.4108,148.48,148.45,101.58965836]
[1724131484225,7.54683743,148.48,148.45,101.58965836]
[1724131484414,38.76,148.49,148.46,61.49012608]
[1724131484716,38.76,148.51,148.47,21.38926608]
[1724131484921,3.3654,148.49,148.48,39.37514229]
[1724131485123,3.3654,148.49,148.48,93.33435836]
[1724131485321,38.76,148.51,148.48,61.49012608]
[1724131485521,38.76,148.51,148.49,41.44037001]
[1724131485820,3.41136297,148.5,148.49,29.67707001]
[1724131486016,3.41136297,148.5,148.49,51.06369738]
[1724131486211,0.04606297,148.5,148.49,51.06369738]
[1724131486617,0.04606297,148.5,148.39,1.334]
[1724131486818,38.76,148.47,148.4,1.33608131]
[1724131487024,38.76,148.47,148.44,3.3663]
[1724131487723,0.05023396,148.47,148.44,0.04429947]
[1724131489919,38.81023396,148.47,148.38,1.259]
[1724131490126,3.36464666,148.52,148.38,1.259]
[1724131490318,3.3661,148.46,148.41,3.367]
[1724131490515,38.76,148.48,148.41,3.367]
[1724131490720,38.76,148.48,148.38,1.259]
[1724131490921,0.04569068,148.44,148.41,3.3672]
[1724131491118,0.01477782,148.44,148.42,0.04542818]
[1724131491422,0.01477782,148.44,148.42,3.41212818]
[1724131491821,0.01477782,148.44,148.42,0.04542818]
[1724131492023,0.01477782,148.44,148.42,3.41222818]
[1724131492220,0.01477782,148.44,148.42,0.04542818]
[1724131492520,0.01477782,148.44,148.43,3.3667]
[1724131500921,0.01477782,148.44,148.42,0.04542818]
[1724131502419,32.33477782,148.44,148.42,0.04542818]
[1724131502729,32.33477782,148.44,148.42,3.41222818]
[1724131504128,35.70127782,148.44,148.42,0.04542818]
[1724131504929,3.3667,148.43,148.42,0.04542818]
[1724131505325,32.33477782,148.44,148.34,2.6279]
[1724131505525,32.32,148.41,148.34,2.6279]
[1724131505721,32.32,148.41,148.32,1.3296]
[1724131506225,35.6873,148.41,148.35,0.04808685]
[1724131506426,0.04975213,148.38,148.35,0.04808685]
[1724131506627,0.04975213,148.38,148.37,3.3681]
[1724131507425,0.04975213,148.38,148.36,3.3682]
[1724131507628,32.36975213,148.38,148.35,0.04808685]
[1724131508027,35.6883,148.36,148.3,1.2993]
[1724131508331,32.32,148.32,148.27,1.3296]
[1724131508533,32.32,148.32,148.29,3.3697]
[1724131508829,32.32,148.34,148.27,1.3296]
[1724131509126,32.32,148.34,148.3,3.3695]
[1724131509528,32.32,148.32,148.29,0.03594428]
[1724131509728,32.37078525,148.32,148.3,3.3697]
[1724131509923,32.32,148.32,148.3,3.3697]
[1724131510129,3.43007275,148.44,148.24,1.3166]
[1724131510334,0.05150865,148.32,148.31,3.3694]
[1724131510535,0.05124326,148.33,148.25,1.3351]
[1724131510732,32.32,148.35,148.31,3.3693]
[1724131511132,0.04458439,148.34,148.32,0.03594428]
[1724131511332,0.04845979,148.34,148.32,0.03594428]
[1724131511929,32.32,148.42,148.32,0.03594428]
[1724131512132,35.687,148.42,148.31,1.2524]
[1724131512333,32.32,148.42,148.31,1.2524]
[1724131512737,35.6871,148.42,148.31,1.2524]
[1724131513131,0.04284009,148.38,148.37,3.3679]
[1724131513333,0.04284009,148.38,148.35,0.04551717]
[1724131513532,32.32,148.4,148.37,3.3679]
[1724131513841,0.04451609,148.38,148.37,3.3679]
[1724131514233,0.04451609,148.38,148.35,0.05023015]
[1724131515242,0.04451609,148.38,148.37,3.3681]
[1724131520533,32.32,148.44,148.36,1.285]
[1724131520935,35.6866,148.44,148.36,1.285]
[1724131521131,35.6866,148.44,148.4,3.3673]
[1724131521338,32.32,148.46,148.36,1.285]
[1724131521644,0.04752233,148.42,148.41,3.3672]
[1724131521937,0.04838151,148.43,148.4,0.04548796]
[1724131522141,0.04838151,148.43,148.42,3.3669]
[1724131522443,0.04838151,148.43,148.4,0.04548796]
[1724131522641,0.04838151,148.43,148.4,3.41278796]
[1724131523336,0.04838151,148.43,148.41,3.3671]
[1724131523737,0.04838151,148.43,148.42,3.3669]
[1724131524736,0.04838151,148.43,148.38,1.3756]
[1724131524737,32.32,148.48,148.38,1.3756]
[1724131525346,32.32,148.48,148.45,3.3662]
[1724131525649,32.36493879,148.48,148.45,0.04530835]
[1724131525837,32.36493879,148.48,148.46,3.366]
[1724131526235,0.04493879,148.48,148.46,3.366]
[1724131527140,0.04493879,148.48,148.47,3.3658]
[1724131530349,712.79092,148.5,148.49,3.3654]
[1724131531246,710.72692,148.5,148.49,3.3654]
[1724131532947,710.72692,148.5,148.48,3.41160057]
[1724131533254,743.04692,148.5,148.48,0.04600057]
[1724131534344,743.04692,148.5,148.49,3.3654]
[1724131534947,710.72692,148.5,148.49,3.3654]
[1724131537252,736.54692,148.5,148.48,0.04600057]
[1724131538853,736.54692,148.5,148.49,3.3654]
[1724131540855,736.54692,148.5,148.48,3.41140057]
[1724131541647,736.54692,148.5,148.48,0.04600057]
[1724131542752,739.91202,148.5,148.48,0.04600057]
[1724131544749,739.91202,148.5,148.48,3.41150057]
[1724131544750,736.54692,148.5,148.48,3.41150057]
[1724131545546,710.72692,148.5,148.49,3.3654]
[1724131546848,710.72692,148.5,148.48,3.41150057]
[1724131547052,710.72692,148.5,148.48,0.04600057]
[1724131547559,736.54692,148.5,148.48,0.04600057]
[1724131548054,739.91212,148.5,148.48,0.04600057]
[1724131548656,736.54692,148.5,148.43,2.5869]
[1724131548852,25.82,148.47,148.43,2.5869]
[1724131549252,25.82,148.47,148.44,3.3665]
[1724131549657,25.86706057,148.47,148.44,3.41458728]
[1724131550459,29.23286057,148.47,148.44,3.41458728]
[1724131552264,25.86706057,148.47,148.44,0.04808728]
[1724131553156,29.23296057,148.47,148.44,0.04808728]
[1724131553365,25.82,148.45,148.44,0.04808728]
[1724131555957,25.82,148.42,148.33,25.82]
[1724131556163,25.82,148.42,148.36,2.5446]
[1724131557063,0.04942575,148.4,148.39,3.3676]
[1724131558257,0.04942575,148.4,148.38,0.04255233]
[1724131558655,3.3664,148.45,148.41,3.3671]
[1724131558856,29.1864,148.45,148.41,3.3671]
[1724131559054,1.2747,148.56,148.37,1.2759]
[1724131559260,29.1858,148.47,148.43,3.3666]
[1724131559660,29.1858,148.47,148.44,0.04683646]
[1724131559661,25.82,148.47,148.44,0.04683646]
[1724131559862,0.04714377,148.46,148.37,27.0959]
[1724131560257,0.04714377,148.46,148.44,0.04686462]
[1724131560661,25.82,148.45,148.44,0.04686462]
[1724131560863,25.82,148.45,148.37,1.2759]
[1724131561354,0.0433313,148.42,148.4,3.3673]
[1724131561557,0.0433313,148.42,148.4,3.41359765]
[1724131561963,0.0433313,148.42,148.4,0.04629765]
[1724131562867,3.4103313,148.42,148.4,0.04629765]
[1724131563077,0.0433313,148.42,148.4,0.04629765]
[1724131563261,29.1872,148.41,148.4,0.04629765]
[1724131563565,25.82,148.41,148.26,3.36343661]
[1724131563869,25.82,148.37,148.27,1.3001]
[1724131564169,25.82,148.37,148.28,25.82]
[1724131564368,25.82,148.37,148.32,3.3691]
[1724131564763,25.82,148.34,148.27,2.6665]
[1724131564969,25.82,148.32,148.27,2.6665]
[1724131565363,29.1894,148.32,148.29,0.0462186]
[1724131565562,0.04913059,148.31,148.29,0.0462186]
[1724131567061,0.04913059,148.31,148.29,3.4159186]
[1724131567966,0.04913059,148.31,148.29,0.0462186]
[1724131568869,25.82,148.3,148.29,0.0462186]
[1724131569866,25.82,148.3,148.29,3.4161186]
[1724131570067,0.04913059,148.31,148.29,3.4161186]
[1724131570267,0.04913059,148.31,148.29,0.0462186]
[1724131570678,25.82,148.3,148.19,25.82]
[1724131570862,25.82,148.28,148.22,2.5699]
[1724131571168,25.82,148.28,148.24,3.3709]
[1724131571367,25.82,148.26,148.22,2.5699]
[1724131571870,25.82,148.24,148.23,0.047757]
[1724131572071,25.82,148.24,148.05,225.0]
[1724131572072,25.82,148.24,148.13,2.5699]
[1724131572372,25.82,148.21,148.14,1.23702434]
[1724131572568,32.37,148.21,148.13,2.5699]
[1724131572768,35.7411,148.24,148.19,3.372]
[1724131573177,0.04493733,148.23,148.2,0.03730511]
[1724131574173,32.37,148.22,148.2,0.03730511]
[1724131574673,35.7416,148.22,148.2,0.03730511]
[1724131574978,35.7416,148.22,148.13,2.5699]
[1724131574979,35.7416,148.22,148.13,5.94707118]
[1724131575180,35.7416,148.22,148.18,3.3723]
[1724131575984,0.04984011,148.21,148.18,3.3723]
[1724131576278,32.37,148.2,148.13,2.5699]
[1724131576576,0.04939736,148.18,148.16,3.3727]
[1724131577073,0.04939736,148.18,148.17,3.3726]
[1724131577973,1.2504,148.3,148.14,32.37]
[1724131578183,3.371,148.25,148.16,0.04859448]
[1724131578383,32.37,148.26,148.14,32.37]
[1724131578678,32.37,148.26,148.19,3.372]
[1724131578884,32.37,148.26,148.14,32.37]
[1724131579068,32.37,148.26,148.22,3.3713]
[1724131579269,32.37,148.26,148.19,0.04939737]
[1724131579270,0.04960527,148.21,148.19,0.04939737]
[1724131579474,35.7408,148.26,148.16,32.37]
[1724131579777,0.04304772,148.21,148.19,0.04532391]
[1724131580280,33.7123,148.29,148.19,0.04532391]
[1724131580575,32.37,148.29,148.19,1.3319]
[1724131580791,32.37,148.27,148.2,1.3309]
[1724131581278,0.04465236,148.25,148.23,3.3711]
[1724131581976,0.04465236,148.25,148.24,3.371]
[1724131582277,0.04465236,148.25,148.22,0.04490465]
[1724131582278,32.37,148.29,148.22,0.04490465]
[1724131582482,32.37,148.29,148.2,4.64156414]
[1724131582778,1294.03439,148.26,148.2,4.64156414]
[1724131583176,1294.03439,148.26,148.25,3.3708]
[1724131586981,1281.64259,148.26,148.25,3.3708]
[1724131591275,1275.53989,148.26,148.25,3.3708]
[1724131592981,1347.39989,148.26,147.94,9.04170802]
[1724131593289,25.85,148.09,147.98,25.85]
[1724131593483,25.85,148.09,147.99,1.23898789]
[1724131593679,25.85,148.09,148.0,25.85]
[1724131593877,0.05076951,148.06,148.03,0.04494519]
[1724131594077,3.38466433,148.11,148.03,0.04494519]
[1724131594389,25.85,148.12,148.03,0.04494519]
[1724131594586,25.85,148.12,148.06,3.3749]
[1724131594781,25.85,148.12,148.07,26.96]
[1724131595285,25.85,148.1,148.08,0.04813853]
[1724131595680,20.95128974,148.1,148.08,0.04813853]
[1724131596284,20.95128974,148.1,148.08,3.42273853]
[1724131596485,0.0435059,148.11,148.08,0.04813853]
[1724131596891,0.0435059,148.11,148.08,3.42273853]
[1724131598192,0.0435059,148.11,148.09,3.3744]
[1724131599488,0.0435059,148.11,148.1,3.3742]
[1724131601796,2.5011,148.14,148.08,0.04813853]
[1724131602190,2.5011,148.14,148.12,3.3736]
[1724131602797,2.5499265,148.14,148.12,3.42265884]
[1724131603090,2.5499265,148.14,148.12,0.04905884]
[1724131607194,32.36,148.13,148.04,28.19928546]
[1724131607390,32.36,148.13,148.04,3.44340444]
[1724131607690,32.36,148.13,148.01,32.36]
[1724131607890,35.7337,148.13,148.02,1.23938922]
[1724131608091,32.36,148.11,148.03,26.96]
[1724131608300,0.05062446,148.09,148.06,0.04446789]
[1724131609298,0.05062446,148.09,148.08,3.3747]
[1724131616793,3.38406351,148.16,148.12,3.3737]
[1724131616997,32.36,148.18,148.07,32.36]
[1724131617197,3.40418218,148.18,148.03,26.96]
[1724131617501,32.36,148.2,148.1,32.36]
[1724131617704,35.75676199,148.2,148.14,3.3732]
[1724131617896,0.04766222,148.18,148.16,0.04585481]
[1724131618293,32.40766222,148.18,148.16,0.04585481]
[1724131618498,25.91,148.16,148.07,3.45477441]
[1724131618698,2.6433,148.15,148.07,3.45477441]
[1724131618900,3.41293076,148.14,148.07,3.45477441]
[1724131619103,2.6433,148.15,148.07,3.45477441]
[1724131619600,0.04455646,148.12,148.1,0.0510554]
[1724131619800,0.04455646,148.12,148.11,3.374]
[1724131622203,0.04455646,148.12,148.1,0.0510554]
[1724131622204,0.04455646,148.12,148.1,3.4251554]
[1724131622507,0.04455646,148.12,148.1,0.0510554]
[1724131623206,0.04455646,148.12,148.11,3.374]
[1724131623708,0.04455646,148.12,148.1,3.4251554]
[1724131624205,0.04455646,148.12,148.1,0.0510554]
[1724131624505,3.49548418,148.12,148.1,0.0510554]
[1724131624807,0.04455646,148.12,148.1,0.0510554]
[1724131625308,3.41284037,148.11,148.1,0.0510554]
[1724131625507,0.04455646,148.12,148.1,3.4252554]
[1724131626104,0.04455646,148.12,148.11,3.374]
[1724131626300,3.40579444,148.12,148.1,0.0510554]
[1724131626502,0.04455646,148.12,148.1,0.0510554]
[1724131626808,3.49921837,148.12,148.1,0.0510554]
[1724131627003,0.04455646,148.12,148.1,0.0510554]
[1724131627200,0.04455646,148.12,148.11,3.374]
[1724131628004,3.32144006,148.14,148.13,3.3734]
[1724131628211,3.32144006,148.14,148.1,0.0510554]
[1724131628606,3.32144006,148.14,148.12,3.3736]
[1724131628804,2.6433,148.15,148.12,3.3736]
[1724131629311,2.6433,148.15,148.13,3.3735]
[1724131629312,3.3426858,148.14,148.13,3.3735]
[1724131629708,0.04972235,148.15,148.13,25.91]
[1724131629904,6.7372,148.35,148.13,25.91]
[1724131629905,25.91,148.23,148.13,25.91]
[1724131630110,28.4972,148.25,148.14,25.91]
[1724131630311,1.2757,148.24,148.14,25.91]
[1724131630512,1.2757,148.24,148.2,3.3719]
[1724131630710,1.2757,148.24,148.14,25.91]
[1724131630911,1.2757,148.24,148.17,25.91]
[1724131631107,0.04303434,148.2,148.17,25.91]
[1724131631412,0.04303434,148.2,148.18,0.04634425]
[1724131631810,0.04303434,148.2,148.14,4.55779731]
[1724131632115,0.04303434,148.2,148.13,25.91]
[1724131632116,0.04303434,148.2,148.18,0.05145608]
[1724131632413,0.04303434,148.2,148.09,2.6393]
[1724131632414,25.91,148.19,148.09,2.6393]
[1724131632609,25.91,148.18,148.1,1.23897676]
[1724131632808,25.91,148.2,148.16,3.3728]
[1724131633513,25.91,148.18,148.17,0.04249573]
[1724131633706,0.04985771,148.19,148.16,0.04736808]
[1724131633707,0.04744339,148.19,148.16,0.04736808]
[1724131633906,0.04992695,148.19,148.16,3.42281991]
[1724131635218,0.04992695,148.19,148.17,3.3726]
[1724131635510,0.04992695,148.19,148.16,0.05011991]
[1724131635907,0.04992695,148.19,148.18,3.3724]
[1724131637912,1.2907,148.25,148.23,3.3712]
[1724131638117,1.2907,148.25,148.16,28.4537]
[1724131638118,27.2007,148.25,148.16,28.4537]
[1724131638424,27.2007,148.25,148.17,3.30998432]
[1724131638714,25.91,148.23,148.14,3.38884964]
[1724131638919,25.91,148.23,148.13,1.293]
[1724131639117,0.04873992,148.2,148.17,0.04610824]
[1724131639717,0.04873992,148.2,148.19,3.372]
[1724131639913,0.04873992,148.2,148.17,0.04610824]
[1724131640115,25.95873992,148.2,148.17,0.04610824]
[1724131640516,25.91,148.18,148.17,0.04610824]
[1724131640720,25.91,148.18,148.08,25.91]
[1724131640917,25.91,148.18,148.09,1.23895941]
[1724131641326,27.2524,148.18,148.09,1.23895941]
[1724131641528,27.2524,148.18,148.08,25.91]
[1724131641725,0.04396143,148.14,148.12,0.04547472]
[1724131644430,25.95396143,148.14,148.12,0.04547472]
[1724131644723,25.95396143,148.14,148.06,1.23921113]
[1724131645026,3.39965915,148.15,148.04,3.32807349]
[1724131645027,25.91,148.12,148.04,3.32807349]
[1724131645629,27.2041,148.12,148.08,3.3746]
[1724131645928,0.04609576,148.09,148.08,3.3746]
[1724131649821,0.04609576,148.09,148.07,0.04501392]
[1724131650228,3.48389415,148.09,148.07,0.04501392]
[1724131650429,0.04609576,148.09,148.07,0.04501392]
[1724131651327,0.04609576,148.09,148.08,3.3747]
[1724131654231,3.38090875,148.13,148.06,3.41261004]
[1724131654436,25.91,148.13,148.03,25.91]
[1724131654639,29.21637055,148.13,148.04,4.5717078]
[1724131654830,29.21637055,148.13,148.05,1.23936658]
[1724131655038,25.91,148.11,148.02,1.2937]
[1724131655238,0.04841873,148.08,148.05,0.04286592]
[1724131655436,0.04841873,148.08,148.07,3.3747]
[1724131657944,0.04841873,148.08,148.05,0.04286592]
[1724131659236,0.04841873,148.08,148.05,3.41806592]
[1724131660238,0.04841873,148.08,148.05,0.04286592]
[1724131660939,0.04841873,148.08,148.07,3.3749]
[1724131665430,0.04841873,148.08,148.06,3.375]
[1724131665635,25.91,148.07,148.05,0.04286592]
[1724131665839,25.91,148.07,147.99,4.59041398]
[1724131666039,25.91,148.07,148.0,1.23985364]
[1724131666241,25.91,148.07,147.97,2.6362]
[1724131666431,25.91,148.07,147.98,27.14982158]
[1724131666631,3.31480484,148.07,147.99,1.23982158]
[1724131666831,0.05003632,148.04,148.02,0.04529989]
[1724131667037,3.3013122,148.04,148.02,0.04529989]
[1724131667333,0.05112879,148.04,148.03,3.3756]
[1724131668244,3.347079,148.07,148.06,3.3751]
[1724131668435,30.6208,148.11,148.04,3.44998818]
[1724131668640,30.6208,148.11,148.07,3.3749]
[1724131669243,0.04595163,148.1,148.08,0.05044228]
[1724131672246,3.50276653,148.1,148.08,3.42514228]
[1724131672943,3.50276653,148.1,148.08,0.05044228]
[1724131674138,6.87716653,148.1,148.06,3.375]
[1724131674338,25.91,148.09,147.99,25.91]
[1724131674546,25.91,148.07,148.0,1.23962436]
[1724131674946,29.35120029,148.07,148.0,1.23962436]
[1724131675445,0.04275441,148.05,148.03,3.3757]
[1724131675842,0.04275441,148.05,148.02,0.04305143]
[1724131676043,0.04275441,148.05,148.02,3.41905143]
[1724131676444,0.04275441,148.05,148.02,0.04305143]
[1724131676648,25.95275441,148.05,148.02,0.04305143]
[1724131677045,25.95275441,148.05,148.02,3.41905143]
[1724131678152,25.95275441,148.05,148.03,3.3757]
[1724131678350,0.04275441,148.05,148.02,0.04305143]
[1724131678649,0.04275441,148.05,148.04,3.3756]
[1724131680352,25.95275441,148.05,148.02,0.04305143]
[1724131680853,25.91,148.03,148.02,0.04305143]
[1724131681153,25.91,148.03,147.93,2.5739]
[1724131681347,25.91,148.03,147.94,1.23999525]
[1724131682055,0.0430405,148.0,147.97,0.04641455]
[1724131683457,0.0430405,148.0,147.97,1.2864098]
[1724131684145,0.0430405,148.0,147.97,0.04641455]
[1724131684358,0.0430405,148.0,147.97,1.28645552]
[1724131684555,25.91,147.98,147.9,1.3229]
[1724131684749,25.91,147.98,147.91,1.24046917]
[1724131685250,25.91,147.98,147.88,28.5667]
[1724131685556,25.91,147.96,147.89,1.24064991]
[1724131685749,0.0443691,147.94,147.92,0.04779392]
[1724131686149,0.0443691,147.94,147.93,3.3781]
[1724131686351,3.47841441,147.94,147.93,3.3781]
[1724131686545,0.0443691,147.94,147.93,3.3781]
[1724131687052,3.48463867,147.94,147.93,3.3781]
[1724131687254,0.0443691,147.94,147.92,3.42609392]
[1724131687460,3.35822978,147.93,147.92,3.42609392]
[1724131687856,0.0443691,147.94,147.92,0.04779392]
[1724131688358,3.44952699,147.94,147.92,0.04779392]
[1724131688558,0.0443691,147.94,147.92,3.42599392]
[1724131689057,3.46134342,147.94,147.93,3.3781]
[1724131689353,0.0443691,147.94,147.93,3.3781]
[1724131689946,3.37952896,147.94,147.93,3.3781]
[1724131691553,0.0443691,147.94,147.93,3.3781]
[1724131693760,3.48622839,147.94,147.93,3.3781]
[1724131694558,0.0443691,147.94,147.93,3.3781]
[1724131694759,3.45516285,147.94,147.93,3.3781]
[1724131694964,0.0443691,147.94,147.92,3.42609392]
[1724131695256,25.91,147.93,147.92,0.04779392]
[1724131696063,29.24650658,147.93,147.92,0.04779392]
[1724131696261,29.24650658,147.93,147.84,1.2659]
[1724131696461,25.91,147.91,147.85,4.65255178]
[1724131696768,25.91,147.91,147.86,1.24096299]
[1724131696970,25.91,147.91,147.88,3.3791]
[1724131697471,25.95691471,147.91,147.88,3.3791]
[1724131697666,25.91,147.89,147.75,365.91]
[1724131697864,0.04827363,147.86,147.82,4.62975097]
[1724131698066,0.04827363,147.86,147.83,1.24112447]
[1724131698264,0.04827363,147.86,147.83,3.29947878]
[1724131698465,0.04827363,147.86,147.8,3.9587]
[1724131698663,0.04827363,147.86,147.85,3.3799]
[1724131698862,0.04827363,147.86,147.85,6.8316728]
[1724131699072,0.04827363,147.86,147.85,3.3799]
[1724131700569,3.43852592,147.91,147.85,3.35643909]
[1724131700765,25.91,147.93,147.84,25.91]
[1724131700970,25.91,147.93,147.88,3.379]
[1724131701166,29.31001605,147.93,147.88,3.379]
[1724131701765,0.0513277,147.92,147.89,3.42572359]
[1724131701973,0.0513277,147.92,147.89,0.04672359]
[1724131702674,3.50539269,147.92,147.89,0.04672359]
[1724131703079,25.91,147.91,147.89,0.04672359]
[1724131703274,51.82,147.91,147.82,3.33932673]
[1724131703473,25.91,147.87,147.8,3.9587]
[1724131703777,25.91,147.85,147.76,25.91]
[1724131704080,25.91,147.85,147.77,1.24141534]
[1724131704377,0.05037263,147.82,147.78,3.32581676]
[1724131704680,0.05037263,147.82,147.81,3.3808]
[1724131707581,0.05037263,147.82,147.79,3.42312576]
[1724131707775,0.05037263,147.82,147.76,1.3707]
[1724131708380,0.05037263,147.82,147.81,3.3808]
[1724131709174,3.44444018,147.82,147.81,3.3808]
[1724131709483,0.05037263,147.82,147.8,3.381]
[1724131710087,3.43092472,147.82,147.8,3.381]
[1724131711280,3.43092472,147.82,147.78,3.38088998]
[1724131711586,3.43092472,147.82,147.76,1.3707]
[1724131711787,3.43092472,147.82,147.8,3.3809]
[1724131712889,3.43092472,147.82,147.81,3.3808]
[1724131714186,3.43092472,147.82,147.76,4.76172657]
[1724131714587,3.43092472,147.82,147.8,3.3809]
[1724131716188,1.3005,147.89,147.8,25.91]
[1724131716383,3.4610992,147.89,147.84,25.91]
[1724131716686,1276.9665661,147.9,147.84,29.35454054]
[1724131716882,1273.62915,147.9,147.84,25.91]
[1724131717083,1273.62915,147.9,147.88,25.91]
[1724131717285,1273.62915,147.9,147.85,3.7772]
[1724131717492,1273.62915,147.9,147.89,3.379]
[1724131717792,1273.67194153,147.9,147.89,3.379]
[1724131718180,1273.67194153,147.9,147.88,0.04529903]
[1724131718887,1273.67194153,147.9,147.89,3.379]
[1724131719489,1273.67194153,147.9,147.88,0.04529903]
[1724131720292,1273.67194153,147.9,147.88,3.42439903]
[1724131720598,1299.58194153,147.9,147.79,25.91]
[1724131720788,1299.53915,147.9,147.8,1.2605]
[1724131720984,1299.53915,147.9,147.8,4.67806031]
[1724131721192,1299.53915,147.9,147.8,1.2605]
[1724131721592,0.04302355,147.86,147.84,0.02442698]
[1724131722894,0.04302355,147.86,147.85,3.3797]
[1724131723102,0.04302355,147.86,147.84,0.02442698]
[1724131723290,25.95302355,147.86,147.84,0.02442698]
[1724131723489,25.95302355,147.86,147.78,1.3421]
[1724131723799,25.95302355,147.86,147.65,225.0]
[1724131723800,25.91,147.84,147.73,25.91]
[1724131723994,29.23705488,147.84,147.79,3.3811]
[1724131724698,0.0486789,147.83,147.79,3.3811]
[1724131724885,0.0486789,147.83,147.8,3.381]
[1724131725692,0.0486789,147.83,147.79,3.3812]
[1724131725986,0.0486789,147.83,147.73,25.91]
[1724131726285,0.04990653,147.79,147.73,25.91]
[1724131727296,0.04990653,147.79,147.78,3.3815]
[1724131729086,25.95990653,147.79,147.72,1.359]
[1724131729697,25.95990653,147.79,147.77,3.3816]
[1724131729898,25.91,147.78,147.69,3.40466457]
[1724131730098,0.04990455,147.75,147.67,25.91]
[1724131730288,0.04990455,147.75,147.68,1.24232539]
[1724131730693,26.35448526,147.78,147.68,1.24232539]
[1724131730894,26.35448526,147.78,147.69,25.91]
[1724131731094,29.7713193,147.78,147.69,29.25924088]
[1724131731500,29.7713193,147.78,147.74,3.3822]
[1724131731799,0.04993547,147.77,147.75,0.04990455]
[1724131732197,51.82,147.76,147.57,6.7724]
[1724131732398,25.91,147.69,147.61,1.2464]
[1724131732589,25.91,147.72,147.62,27.15266808]
[1724131732887,25.91,147.73,147.64,25.91]
[1724131733089,25.91,147.73,147.64,27.2401]
[1724131733695,25.91,147.73,147.69,3.3835]
[1724131733896,0.04502878,147.7,147.69,3.3835]
[1724131736508,0.04502878,147.7,147.68,3.3838]
[1724131737899,3.49088585,147.7,147.67,3.384]
[1724131738801,3.49088585,147.7,147.66,3.3841]
[1724131740401,3.49088585,147.7,147.61,2.5258]
[1724131740402,0.04502878,147.7,147.63,25.91]
[1724131740602,0.04502878,147.7,147.64,1.24280805]
[1724131740798,0.04409889,147.68,147.64,1.24280805]
[1724131741107,0.04409889,147.68,147.66,3.384]
[1724131741507,0.04409889,147.68,147.63,25.91]
[1724131741697,3.41396284,147.72,147.67,25.91]
[1724131741903,25.91,147.8,147.7,25.91]
[1724131742205,4.63686355,147.77,147.7,25.91]
[1724131742404,3.44158862,147.77,147.7,25.91]
[1724131742599,25.91,147.8,147.74,3.3822]
[1724131742802,0.05189557,147.78,147.76,0.04409889]
[1724131743001,3.42990139,147.78,147.76,0.04409889]
[1724131743211,0.05189557,147.78,147.76,0.04409889]
[1724131743711,3.41874057,147.78,147.76,0.04409889]
[1724131743904,0.05189557,147.78,147.76,0.04409889]
[1724131744501,3.43125421,147.78,147.76,0.04409889]
[1724131745005,32.72285421,147.78,147.76,0.04409889]
[1724131745416,29.34125421,147.78,147.68,2.518]
[1724131745715,29.28935864,147.78,147.69,25.91]
[1724131745918,29.28935864,147.78,147.7,3.41179378]
[1724131746112,32.67095864,147.78,147.69,25.91]
[1724131746409,0.05088868,147.75,147.69,25.91]